bitfinex-derivatives/quotes_BTCF0:USTF0_20240824
["timestamp","ask_amount","ask_price","bid_price","bid_amount"]
[1724461338093,0.00923437,64016.0,64015.0,0.078043]
[1724461338294,0.00923437,64016.0,64015.0,0.12472315]
[1724461338699,0.00923437,64016.0,64015.0,0.04668015]
[1724461338900,0.00923437,64016.0,64013.0,0.001]
[1724461338901,0.078044,64015.0,64013.0,0.001]
[1724461339100,0.173144,64014.0,64012.0,0.04668015]
[1724461339422,0.173144,64014.0,64013.0,0.04668015]
[1724461340207,0.181144,64014.0,64012.0,0.04768015]
[1724461341004,4e-05,64013.0,64012.0,0.04768015]
[1724461341606,4e-05,64013.0,64012.0,0.001]
[1724461341910,4e-05,64013.0,64009.0,0.078049]
[1724461342604,0.00804,64013.0,64012.0,0.00096]
[1724461342797,0.008,64013.0,64012.0,0.00096]
[1724461343205,0.125644,64014.0,64011.0,0.078047]
[1724461343401,0.004,64013.0,64010.0,0.64465481]
[1724461343701,0.004,64013.0,64012.0,0.078047]
[1724461344210,0.078048,64011.0,64010.0,0.3624]
[1724461344408,0.078048,64011.0,64010.0,0.3608]
[1724461344605,0.06634341,64013.0,64008.0,0.04670692]
[1724461344802,0.06634341,64013.0,64003.0,0.07829137]
[1724461344803,0.078052,64008.0,64007.0,0.04670692]
[1724461345010,0.3608,64009.0,64003.0,0.06248918]
[1724461345011,0.078054,64006.0,64005.0,0.04670692]
[1724461345207,0.078054,64006.0,64003.0,0.00023437]
[1724461345208,0.078055,64005.0,64004.0,0.04670692]
[1724461345513,0.07806,64001.0,63994.0,0.06225481]
[1724461345807,0.07806,64001.0,63984.0,0.09315546]
[1724461345808,0.07807,63993.0,63984.0,0.0467333]
[1724461346008,0.07808,63985.0,63983.0,0.0467333]
[1724461346209,0.078083,63982.0,63979.0,0.3608]
[1724461347705,0.3608,63984.0,63979.0,0.3608]
[1724461348414,0.001,63982.0,63979.0,0.3728]
[1724461348713,0.001,63982.0,63981.0,0.3608]
[1724461349009,0.00023437,63987.0,63981.0,0.3608]
[1724461349202,0.001,63984.0,63982.0,0.0465821]
[1724461350812,0.001,63984.0,63982.0,0.1246651]
[1724461351315,0.00023437,63987.0,63983.0,0.078081]
[1724461351911,0.001,63984.0,63983.0,0.078081]
[1724461352413,0.00123437,63987.0,63983.0,0.087081]
[1724461356018,0.07931237,63987.0,63983.0,0.087081]
[1724461356412,0.3608,63984.0,63983.0,0.087081]
[1724461356611,0.438882,63984.0,63983.0,0.009]
[1724461357710,0.078084,63983.0,63979.0,0.3608]
[1724461357905,0.078084,63983.0,63972.0,0.1246791]
[1724461358105,0.078093,63976.0,63972.0,0.1246791]
[1724461358607,4e-05,63973.0,63972.0,0.1246791]
[1724461359211,4e-05,63973.0,63972.0,0.1366791]
[1724461360717,4e-05,63973.0,63972.0,0.1246791]
[1724461360918,4e-05,63973.0,63972.0,0.1366791]
[1724461361415,0.00104,63973.0,63972.0,0.090097]
[1724461364420,0.079136,63973.0,63972.0,0.012]
[1724461367019,0.948096,63973.0,63972.0,0.012]
[1724461367414,0.079136,63973.0,63972.0,0.012]
[1724461368511,0.0661,63969.0,63968.0,0.00013722]
[1724461369317,0.06614,63969.0,63968.0,0.00013722]
[1724461370522,0.06714,63969.0,63968.0,0.00013722]
[1724461371823,0.06714,63969.0,63968.0,0.07823822]
[1724461373624,0.00104,63969.0,63968.0,0.07823822]
[1724461373823,0.00104,63969.0,63968.0,0.29823822]
[1724461374025,0.3608,63982.0,63968.0,1.12803822]
[1724461374320,0.3608,63982.0,63975.0,0.22]
[1724461374520,0.3608,63982.0,63976.0,0.0954]
[1724461374724,0.3608,63982.0,63981.0,0.078085]
[1724461375125,0.3618,63982.0,63981.0,0.078085]
[1724461377129,0.001,63982.0,63981.0,0.078085]
[1724461377628,0.078092,63976.0,63974.0,0.4073821]
[1724461377930,0.078092,63976.0,63974.0,0.438893]
[1724461378129,0.078092,63976.0,63974.0,0.4854751]
[1724461378428,0.001,63982.0,63974.0,0.4854751]
[1724461378429,0.078132,63975.0,63974.0,0.3608]
[1724461378636,0.127932,63975.0,63974.0,0.3608]
[1724461379232,0.127932,63975.0,63974.0,0.4073821]
[1724461379832,0.127932,63975.0,63974.0,0.0465821]
[1724461380128,1.357652,63975.0,63974.0,0.002]
[1724461380531,1.35842792,63975.0,63974.0,0.002]
[1724461380826,1.35842792,63975.0,63974.0,0.00096]
[1724461380827,1.43651992,63975.0,63974.0,0.00096]
[1724461381937,1.358652,63975.0,63974.0,0.00096]
[1724461382926,1.43650973,63975.0,63974.0,0.00096]
[1724461383127,0.078099,63969.0,63968.0,0.00017722]
[1724461383334,0.438899,63969.0,63968.0,0.00017722]
[1724461383927,0.438939,63969.0,63968.0,0.00017722]
[1724461384328,0.439939,63969.0,63968.0,0.00017722]
[1724461388239,0.439939,63969.0,63968.0,0.04675932]
[1724461390642,0.439939,63969.0,63968.0,0.00017722]
[1724461391034,0.50222162,63969.0,63968.0,0.00017722]
[1724461392245,0.439939,63969.0,63968.0,0.04675932]
[1724461393343,0.439939,63969.0,63968.0,0.00017722]
[1724461393749,0.72222162,63969.0,63968.0,0.00017722]
[1724461394040,0.50222162,63969.0,63968.0,0.00017722]
[1724461395843,0.439939,63969.0,63968.0,0.00017722]
[1724461398039,0.079139,63969.0,63968.0,0.00017722]
[1724461398348,0.439939,63969.0,63968.0,0.00017722]
[1724461399345,0.518038,63969.0,63968.0,0.00017722]
[1724461399548,1.607038,63969.0,63968.0,2.2e-07]
[1724461399738,1.80369399,63969.0,63968.0,2.2e-07]
[1724461400047,1.75519659,63969.0,63968.0,2.2e-07]
[1724461400348,1.75487336,63969.0,63968.0,2.2e-07]
[1724461400539,1.75501058,63969.0,63968.0,2.2e-07]
[1724461400736,1.71059426,63969.0,63968.0,2.2e-07]
[1724461401443,1.75494757,63969.0,63968.0,2.2e-07]
[1724461401941,1.75394757,63969.0,63968.0,2.2e-07]
[1724461402253,1.71459426,63969.0,63968.0,2.2e-07]
[1724461404349,1.71459758,63969.0,63968.0,2.2e-07]
[1724461405050,1.76269758,63969.0,63968.0,2.2e-07]
[1724461405350,1.36269758,63969.0,63968.0,2.2e-07]
[1724461405737,1.76269758,63969.0,63968.0,2.2e-07]
[1724461407251,1.36269758,63969.0,63968.0,2.2e-07]
[1724461407449,1.76269758,63969.0,63968.0,2.2e-07]
[1724461407651,1.36269758,63969.0,63968.0,2.2e-07]
[1724461408053,1.76269758,63969.0,63968.0,2.2e-07]
[1724461408947,1.85589914,63969.0,63968.0,2.2e-07]
[1724461409145,1.85589917,63969.0,63968.0,2.2e-07]
[1724461410545,0.078108,63963.0,63943.0,0.062281]
[1724461410752,0.3608,63950.0,63943.0,0.07813]
[1724461410950,0.07813,63944.0,63942.0,0.45392306]
[1724461411147,0.07813,63944.0,63942.0,0.4072]
[1724461411356,0.078131,63943.0,63942.0,0.0464]
[1724461411555,0.438931,63943.0,63942.0,0.0464]
[1724461412643,0.439931,63943.0,63942.0,0.0464]
[1724461416444,0.079131,63943.0,63942.0,0.0464]
[1724461423552,0.079131,63943.0,63942.0,0.124532]
[1724461423752,0.001,63943.0,63942.0,0.124532]
[1724461423948,0.00013722,63949.0,63948.0,0.078125]
[1724461424150,0.00013722,63949.0,63946.0,0.0467003]
[1724461425052,0.00013722,63949.0,63947.0,0.0467003]
[1724461425258,0.00013722,63949.0,63948.0,0.0467003]
[1724461426752,0.00113722,63949.0,63948.0,0.0467003]
[1724461426957,0.00113722,63949.0,63946.0,0.079126]
[1724461426958,0.00113722,63949.0,63947.0,0.0467003]
[1724461427153,0.00113722,63949.0,63948.0,0.0467003]
[1724461427359,0.00013722,63949.0,63948.0,0.0467003]
[1724461427559,0.00113722,63949.0,63948.0,0.0487003]
[1724461428262,0.00113722,63949.0,63948.0,0.002]
[1724461429354,0.00113722,63949.0,63948.0,0.064281]
[1724461429565,0.00113722,63949.0,63948.0,0.002]
[1724461429960,0.42295722,63955.0,63948.0,0.002]
[1724461430158,0.06215722,63962.0,63960.0,0.07811]
[1724461430357,0.06215722,63967.0,63964.0,0.078104]
[1724461430662,0.06215722,63967.0,63964.0,0.04677677]
[1724461430872,0.06215722,63965.0,63964.0,0.04677677]
[1724461431064,0.06215722,63965.0,63963.0,0.04677677]
[1724461431265,0.06215722,63966.0,63962.0,0.04677677]
[1724461431461,0.06215722,63966.0,63963.0,0.04677677]
[1724461431661,0.06215722,63966.0,63962.0,0.04677677]
[1724461432068,0.06215722,63966.0,63963.0,0.04677677]
[1724461432263,0.07115722,63967.0,63962.0,0.04677677]
[1724461432458,0.07115722,63967.0,63961.0,0.18817677]
[1724461433770,0.07115722,63967.0,63961.0,0.13987677]
[1724461433966,0.14925922,63967.0,63961.0,0.04677677]
[1724461434156,0.001,63966.0,63960.0,0.3608]
[1724461434769,0.078103,63966.0,63960.0,0.3608]
[1724461435659,0.078103,63966.0,63959.0,0.04677677]
[1724461435968,0.06215722,63967.0,63960.0,0.07811]
[1724461436167,0.3608,63968.0,63959.0,0.04677677]
[1724461436367,0.10877645,63965.0,63964.0,0.078105]
[1724461436567,0.07072687,63965.0,63964.0,0.438905]
[1724461436769,0.07072687,63965.0,63964.0,0.658905]
[1724461436968,0.02531829,63965.0,63964.0,1.527905]
[1724461437571,4e-05,63969.0,63967.0,0.078101]
[1724461437773,0.07147904,63968.0,63967.0,0.078101]
[1724461438960,0.07180961,63968.0,63967.0,0.078101]
[1724461439468,0.00304,63969.0,63967.0,0.078101]
[1724461440370,0.003,63968.0,63967.0,0.078101]
[1724461440969,0.00304,63969.0,63964.0,0.3608]
[1724461441177,0.00304,63969.0,63958.0,0.40781134]
[1724461441178,0.07811,63960.0,63958.0,0.36103457]
[1724461441672,0.3608,63959.0,63958.0,0.00023457]
[1724461441872,0.42299349,63959.0,63958.0,0.00023457]
[1724461442171,0.3608,63959.0,63958.0,0.00023457]
[1724461444575,0.3628,63959.0,63958.0,0.00023457]
[1724461446069,0.440911,63959.0,63958.0,0.00023457]
[1724461446476,0.3628,63959.0,63958.0,0.00023457]
[1724461446777,0.3628,63959.0,63958.0,0.07834657]
[1724461447075,0.002,63959.0,63958.0,0.07834657]
[1724461447274,0.0486892,63959.0,63958.0,0.07834657]
[1724461447472,0.04869303,63959.0,63958.0,0.07834657]
[1724461447673,0.002,63959.0,63958.0,0.00023457]
[1724461448064,0.176411,63959.0,63958.0,0.00023457]
[1724461448271,0.23860447,63959.0,63958.0,0.00023457]
[1724461448670,0.078121,63951.0,63950.0,0.3608]
[1724461450371,0.12481426,63951.0,63950.0,0.3608]
[1724461450975,0.12481426,63951.0,63945.0,0.438927]
[1724461451173,0.12581426,63951.0,63950.0,0.002]
[1724461452670,0.12481426,63951.0,63947.0,0.078125]
[1724461452968,0.079121,63951.0,63947.0,0.078125]
[1724461453377,0.079121,63951.0,63950.0,0.002]
[1724461453981,0.079121,63951.0,63947.0,0.078125]
[1724461453982,0.078121,63951.0,63947.0,0.078125]
[1724461454171,0.079121,63951.0,63947.0,0.080125]
[1724461454883,0.079121,63951.0,63948.0,0.078125]
[1724461455571,0.079121,63951.0,63949.0,0.078123]
[1724461455876,0.079121,63951.0,63950.0,0.002]
[1724461456267,0.078121,63951.0,63949.0,0.078123]
[1724461456472,0.079121,63951.0,63949.0,0.078123]
[1724461456873,0.078121,63951.0,63949.0,0.078123]
[1724461457076,0.079121,63951.0,63950.0,0.002]
[1724461457681,0.079121,63951.0,63949.0,0.080123]
[1724461458073,0.12581426,63951.0,63949.0,0.080123]
[1724461458576,4e-05,63950.0,63949.0,0.080123]
[1724461459278,4e-05,63950.0,63949.0,0.078123]
[1724461459876,0.00104,63950.0,63949.0,0.080123]
[1724461460075,0.12585526,63950.0,63949.0,0.002]
[1724461460475,0.079162,63950.0,63949.0,0.002]
[1724461461986,0.00104,63950.0,63939.0,0.04677677]
[1724461462286,0.0467163,63943.0,63937.0,0.04677677]
[1724461462483,0.0467163,63943.0,63935.0,0.36092816]
[1724461462484,0.0467163,63944.0,63939.0,0.04677677]
[1724461462681,0.0467163,63944.0,63938.0,0.04677677]
[1724461463182,0.0467163,63946.0,63938.0,0.04677677]
[1724461463387,4e-05,63939.0,63938.0,0.04677677]
[1724461464280,4e-05,63939.0,63938.0,0.04877677]
[1724461465283,4e-05,63939.0,63938.0,0.080137]
[1724461465482,4e-05,63939.0,63938.0,0.12691377]
[1724461465682,4e-05,63939.0,63938.0,0.080137]
[1724461465886,0.00104,63939.0,63938.0,0.078137]
[1724461466189,0.00104,63939.0,63938.0,0.12491377]
[1724461466488,0.00104,63939.0,63938.0,0.078137]
[1724461466992,0.00104,63939.0,63938.0,0.12491377]
[1724461467196,0.00104,63939.0,63938.0,0.078137]
[1724461467494,0.00104,63939.0,63938.0,0.12487727]
[1724461467688,0.00104,63939.0,63938.0,0.078137]
[1724461469286,0.00104,63939.0,63938.0,0.14050816]
[1724461469684,0.00104,63939.0,63938.0,0.078137]
[1724461473787,0.00104,63939.0,63937.0,0.3608]
[1724461473788,0.078137,63938.0,63937.0,0.3608]
[1724461473985,0.078137,63938.0,63937.0,0.42319648]
[1724461474591,0.078177,63938.0,63937.0,0.42319648]
[1724461475592,0.079177,63938.0,63937.0,0.42319648]
[1724461477099,0.078139,63936.0,63935.0,0.00012816]
[1724461478093,0.1404674,63936.0,63935.0,0.00012816]
[1724461478297,0.078179,63936.0,63935.0,0.00012816]
[1724461478486,0.1404674,63936.0,63935.0,0.00012816]
[1724461479196,0.1414674,63936.0,63935.0,0.00012816]
[1724461479385,0.079179,63936.0,63935.0,0.00012816]
[1724461480897,0.439979,63936.0,63935.0,0.00012816]
[1724461485200,0.439979,63936.0,63935.0,0.0469426]
[1724461485402,0.439979,63936.0,63935.0,0.00012816]
[1724461485994,0.439979,63936.0,63935.0,0.0469426]
[1724461486194,0.439979,63936.0,63935.0,0.00012816]
[1724461487294,0.439979,63936.0,63935.0,0.0469426]
[1724461487496,0.439979,63936.0,63935.0,0.00012816]
[1724461490811,0.079179,63936.0,63935.0,0.00012816]
[1724461491304,0.079179,63936.0,63935.0,0.0469426]
[1724461492104,0.079179,63936.0,63935.0,0.00012816]
[1724461492105,0.1414674,63936.0,63935.0,0.00012816]
[1724461492304,0.00012816,63935.0,63930.0,0.06239648]
[1724461492505,0.00012816,63935.0,63925.0,0.0468189]
[1724461492506,0.65854186,63931.0,63925.0,0.0468189]
[1724461492805,0.65854186,63931.0,63923.0,0.0468189]
[1724461492806,0.078154,63924.0,63923.0,0.0468189]
[1724461493002,0.438954,63924.0,63922.0,0.0468189]
[1724461493203,0.078156,63922.0,63921.0,0.0468189]
[1724461493404,0.078158,63921.0,63920.0,0.04680197]
[1724461493604,0.078158,63921.0,63915.0,0.0494]
[1724461493605,0.078158,63921.0,63917.0,0.06242232]
[1724461493805,0.04671814,63920.0,63917.0,0.06242232]
[1724461493998,0.04671814,63922.0,63919.0,0.06242232]
[1724461494204,0.04671814,63923.0,63921.0,0.3608]
[1724461494509,0.04671814,63924.0,63921.0,0.42322232]
[1724461494705,0.078153,63925.0,63921.0,0.42322232]
[1724461494706,0.04671814,63923.0,63921.0,0.3608]
[1724461495409,0.078153,63925.0,63921.0,0.3608]
[1724461495410,0.04671814,63924.0,63921.0,0.3608]
[1724461495609,0.04671814,63924.0,63922.0,0.04678271]
[1724461496407,0.12487114,63925.0,63922.0,0.04678271]
[1724461496906,0.658955,63923.0,63922.0,0.04677596]
[1724461497112,0.00012816,63922.0,63909.0,9.6e-07]
[1724461497406,0.00012816,63922.0,63895.0,0.0937]
[1724461497407,0.078179,63904.0,63898.0,0.06242232]
[1724461497613,0.078179,63904.0,63897.0,0.06242232]
[1724461497904,0.078179,63904.0,63896.0,0.06242232]
[1724461498103,0.078179,63904.0,63897.0,0.06242232]
[1724461498304,0.078179,63904.0,63895.0,0.15612232]
[1724461498305,0.3608,63903.0,63895.0,0.15612232]
[1724461498509,0.3608,63903.0,63895.0,0.0937]
[1724461499108,4e-05,63896.0,63895.0,0.0937]
[1724461499304,0.00016816,63896.0,63894.0,0.00015795]
[1724461499508,0.00016816,63896.0,63895.0,0.46952]
[1724461500507,0.00116816,63896.0,63894.0,0.00015795]
[1724461501501,4e-05,63895.0,63894.0,0.00015795]
[1724461502910,0.00104,63895.0,63894.0,0.00015795]
[1724461504609,0.00104,63895.0,63894.0,1.08967795]
[1724461505118,1e-08,63896.0,63895.0,0.547709]
[1724461506213,1e-08,63896.0,63895.0,0.947709]
[1724461506515,1e-08,63896.0,63895.0,0.547709]
[1724461506715,0.00100001,63896.0,63895.0,0.947709]
[1724461507414,0.00100001,63896.0,63895.0,0.547709]
[1724461509024,0.00100001,63896.0,63895.0,0.078189]
[1724461511218,0.36103457,63907.0,63906.0,0.078176]
[1724461511219,0.00023457,63907.0,63906.0,0.078176]
[1724461511430,0.00023457,63907.0,63906.0,0.438976]
[1724461512112,0.3608,63915.0,63914.0,0.078166]
[1724461512712,0.078155,63923.0,63918.0,0.078161]
[1724461513609,0.10364235,63926.0,63914.0,0.00023476]
[1724461513816,0.36103476,63927.0,63914.0,0.00023476]
[1724461513817,0.36103476,63927.0,63922.0,0.3608]
[1724461514015,0.36103476,63927.0,63926.0,0.078152]
[1724461514320,0.00023476,63927.0,63926.0,0.078152]
[1724461515623,0.01123476,63927.0,63926.0,0.078152]
[1724461516021,0.00023476,63927.0,63926.0,0.078152]
[1724461516223,0.00923476,63927.0,63926.0,0.078152]
[1724461516822,0.078155,63924.0,63917.0,0.078162]
[1724461517013,0.22,63923.0,63915.0,0.3608]
[1724461517214,0.078158,63921.0,63915.0,0.3608]
[1724461517820,4e-05,63916.0,63915.0,0.438965]
[1724461518925,4e-05,63916.0,63915.0,0.440965]
[1724461519514,4e-05,63916.0,63915.0,0.438965]
[1724461519821,4e-05,63916.0,63915.0,0.440965]
[1724461520917,4e-05,63916.0,63915.0,0.3628]
[1724461521118,1.606528,63916.0,63914.0,0.00023476]
[1724461521318,0.51886,63915.0,63914.0,0.00023476]
[1724461521519,0.91886,63915.0,63914.0,0.00023476]
[1724461521932,0.58086242,63915.0,63914.0,0.00023476]
[1724461522117,0.5189,63915.0,63914.0,0.00023476]
[1724461522322,0.98086242,63915.0,63914.0,0.00023476]
[1724461522923,0.58986242,63915.0,63914.0,0.00023476]
[1724461523124,0.9279,63915.0,63914.0,0.00023476]
[1724461523427,0.58986242,63915.0,63914.0,0.00023476]
[1724461523617,0.05854,63915.0,63914.0,0.00023476]
[1724461523823,0.10502471,63915.0,63914.0,0.00023476]
[1724461524127,0.05854,63915.0,63914.0,0.00023476]
[1724461524329,0.10503005,63915.0,63914.0,0.00023476]
[1724461524527,0.10503404,63915.0,63914.0,0.00023476]
[1724461524723,0.10504145,63915.0,63914.0,0.00023476]
[1724461526421,0.05854,63915.0,63914.0,0.00023476]
[1724461526626,0.00904,63915.0,63914.0,0.00023476]
[1724461527442,0.22904,63915.0,63914.0,0.00023476]
[1724461527623,0.27555807,63915.0,63914.0,0.00023476]
[1724461527940,0.22904,63915.0,63914.0,0.00023476]
[1724461529423,0.00904,63915.0,63914.0,0.00023476]
[1724461530731,0.00904,63915.0,63900.0,0.0494]
[1724461530732,0.4694,63914.0,63897.0,0.06242232]
[1724461531035,0.3608,63898.0,63887.0,0.125099]
[1724461531232,0.438986,63898.0,63887.0,0.125099]
[1724461531728,0.438986,63898.0,63888.0,0.078198]
[1724461531729,4e-05,63895.0,63888.0,0.078198]
[1724461533432,0.00104,63895.0,63888.0,0.078198]
[1724461534732,0.00104,63895.0,63891.0,0.078194]
[1724461535329,0.00104,63895.0,63892.0,0.078193]
[1724461535531,0.00104,63895.0,63893.0,0.048]
[1724461536033,0.00104,63895.0,63893.0,0.126191]
[1724461537935,0.36184,63895.0,63893.0,0.126191]
[1724461540933,0.36184,63895.0,63894.0,0.07838895]
[1724461546741,0.00104,63895.0,63894.0,0.07838895]
[1724461550146,0.00023476,63902.0,63895.0,0.46952]
[1724461550443,0.00023476,63902.0,63894.0,0.76099795]
[1724461550444,0.07841576,63902.0,63899.0,0.078185]
[1724461550639,0.07841576,63902.0,63900.0,0.0487]
[1724461550947,0.07841576,63902.0,63901.0,4e-05]
[1724461551741,0.12497247,63902.0,63901.0,4e-05]
[1724461551945,0.12597247,63902.0,63901.0,4e-05]
[1724461552145,0.07941576,63902.0,63901.0,4e-05]
[1724461552431,0.12497247,63902.0,63901.0,4e-05]
[1724461552640,0.12597247,63902.0,63901.0,4e-05]
[1724461553439,0.07941576,63902.0,63901.0,4e-05]
[1724461554640,0.14137818,63902.0,63901.0,4e-05]
[1724461554849,0.07941576,63902.0,63901.0,4e-05]
[1724461556545,0.14137818,63902.0,63901.0,4e-05]
[1724461556842,0.07941576,63902.0,63901.0,4e-05]
[1724461559546,0.14137818,63902.0,63901.0,4e-05]
[1724461560447,0.94889576,63902.0,63901.0,4e-05]
[1724461560649,0.97424146,63902.0,63894.0,0.00019795]
[1724461560947,0.51718,63895.0,63894.0,0.00019795]
[1724461561152,0.54252864,63895.0,63894.0,0.00019795]
[1724461561450,1.01204864,63895.0,63894.0,0.00019795]
[1724461561650,0.46433864,63895.0,63894.0,0.00019795]
[1724461562042,0.43899,63895.0,63894.0,0.00019795]
[1724461562244,0.43999,63895.0,63894.0,0.00019795]
[1724461562449,0.3618,63895.0,63894.0,0.00019795]
[1724461563543,0.43999,63895.0,63894.0,0.00019795]
[1724461564954,0.3618,63895.0,63894.0,0.07838895]
[1724461565248,0.40845624,63895.0,63894.0,0.07838895]
[1724461565645,0.3618,63895.0,63894.0,0.07838895]
[1724461565844,0.40845509,63895.0,63894.0,0.07838895]
[1724461566541,0.3618,63895.0,63894.0,0.00019795]
[1724461566754,0.43999,63895.0,63894.0,0.00019795]
[1724461574350,0.3618,63895.0,63894.0,0.07838895]
[1724461576156,0.001,63895.0,63894.0,0.94790895]
[1724461578253,0.001,63895.0,63894.0,0.54790895]
[1724461579258,0.001,63895.0,63894.0,0.94790895]
[1724461579649,0.001,63895.0,63894.0,1.41924603]
[1724461580859,0.00023476,63902.0,63901.0,0.078182]
[1724461581259,0.00023476,63902.0,63901.0,0.547662]
[1724461581764,0.00023476,63902.0,63901.0,0.547702]
[1724461582258,0.00023476,63902.0,63901.0,1.305302]
[1724461582457,0.00123476,63902.0,63901.0,0.905302]
[1724461582656,0.00123476,63902.0,63901.0,1.305302]
[1724461584151,0.00123476,63902.0,63901.0,0.905302]
[1724461585466,0.00123476,63902.0,63901.0,1.305302]
[1724461591662,0.00123476,63902.0,63901.0,0.905302]
[1724461593466,0.00123476,63902.0,63901.0,1.305302]
[1724461593768,0.00123476,63902.0,63901.0,1.31331139]
[1724461594463,0.00123476,63902.0,63901.0,1.305302]
[1724461595563,0.00123476,63902.0,63901.0,0.905302]
[1724461597964,0.00123476,63902.0,63901.0,1.305302]
[1724461598165,0.00123476,63902.0,63901.0,0.905302]
[1724461598769,0.00123476,63902.0,63901.0,1.305302]
[1724461600261,0.00123476,63902.0,63901.0,0.435822]
[1724461600765,0.00123476,63902.0,63901.0,4e-05]
[1724461600960,0.07941576,63902.0,63901.0,4e-05]
[1724461605063,0.0853621,63902.0,63901.0,4e-05]
[1724461607675,0.5243431,63902.0,63901.0,4e-05]
[1724461608873,0.4461621,63902.0,63901.0,4e-05]
[1724461609370,0.50834232,63902.0,63901.0,4e-05]
[1724461610671,0.14754232,63902.0,63901.0,4e-05]
[1724461610874,0.94732332,63902.0,63901.0,4e-05]
[1724461611081,0.94737954,63902.0,63901.0,4e-05]
[1724461611275,0.078189,63895.0,63894.0,0.00019795]
[1724461611485,0.48566824,63895.0,63894.0,0.00019795]
[1724461611776,0.438989,63895.0,63894.0,0.00019795]
[1724461612585,0.438989,63895.0,63884.0,0.0498]
[1724461612586,0.078203,63884.0,63883.0,0.0478]
[1724461612971,0.078203,63884.0,63881.0,0.0623868]
[1724461613173,0.078203,63884.0,63880.0,0.1405938]
[1724461613875,0.3608,63886.0,63880.0,0.1405938]
[1724461614079,0.078204,63883.0,63880.0,0.1405938]
[1724461614275,0.078204,63883.0,63880.0,0.078207]
[1724461616278,0.079204,63883.0,63880.0,0.078207]
[1724461617071,0.079204,63883.0,63881.0,0.04671925]
[1724461618186,0.079204,63883.0,63882.0,0.04671925]
[1724461618375,0.079204,63883.0,63880.0,0.078207]
[1724461618685,0.001,63883.0,63878.0,0.04671261]
[1724461618880,0.3608,63879.0,63877.0,0.09471261]
[1724461619086,0.07821,63878.0,63877.0,0.04671261]
[1724461619284,0.00011428,63878.0,63873.0,0.04671261]
[1724461619585,0.00011428,63878.0,63872.0,0.04671261]
[1724461619789,0.00011428,63878.0,63874.0,0.04671261]
[1724461620276,0.078213,63876.0,63875.0,0.04671261]
[1724461620474,0.00011428,63878.0,63870.0,0.0623868]
[1724461620680,0.00011428,63878.0,63876.0,0.04671538]
[1724461620873,0.00011428,63878.0,63877.0,0.128011]
[1724461621273,0.00011428,63878.0,63877.0,0.128051]
[1724461621482,0.00011428,63878.0,63877.0,0.175451]
[1724461622375,0.00111428,63878.0,63877.0,0.175451]
[1724461623287,0.00111428,63878.0,63877.0,0.2378378]
[1724461624181,0.00111428,63878.0,63877.0,0.175451]
[1724461627680,0.07932428,63878.0,63877.0,4e-05]
[1724461627988,0.44012428,63878.0,63877.0,4e-05]
[1724461628679,0.44012428,63878.0,63877.0,0.04683989]
[1724461629180,0.44012428,63878.0,63877.0,4e-05]
[1724461629387,0.07932428,63878.0,63877.0,4e-05]
[1724461630985,0.07832428,63878.0,63877.0,4e-05]
[1724461631290,0.07932428,63878.0,63877.0,4e-05]
[1724461632489,0.07932428,63878.0,63872.0,0.04678637]
[1724461632490,0.94896428,63878.0,63872.0,0.04678637]
[1724461632791,0.94896428,63878.0,63870.0,0.04678637]
[1724461632792,0.078219,63871.0,63870.0,0.04678637]
[1724461632991,0.3608,63873.0,63869.0,0.04678637]
[1724461632992,0.07822,63870.0,63869.0,0.04678637]
[1724461633377,0.07822,63870.0,63868.0,0.09318637]
[1724461633583,0.078221,63869.0,63868.0,0.09318637]
[1724461633982,0.00023476,63876.0,63875.0,0.078214]
[1724461634495,0.00023476,63876.0,63875.0,0.24007941]
[1724461634683,0.00023476,63876.0,63875.0,0.177714]
[1724461635292,0.00123476,63876.0,63875.0,0.177714]
[1724461635496,0.00123476,63876.0,63875.0,0.24007941]
[1724461635884,0.00123476,63876.0,63875.0,0.177714]
[1724461636591,0.00123476,63876.0,63875.0,0.538514]
[1724461637893,0.00123476,63876.0,63875.0,0.61650309]
[1724461638098,0.00123476,63876.0,63875.0,0.73015857]
[1724461638396,0.00123476,63876.0,63875.0,0.65216948]
[1724461638695,0.04666385,63890.0,63883.0,0.078203]
[1724461638994,0.04666385,63892.0,63888.0,0.06240934]
[1724461639194,0.078192,63893.0,63891.0,0.04681281]
[1724461639398,0.40826385,63894.0,63888.0,0.06240934]
[1724461639399,0.3608,63894.0,63892.0,0.04681281]
[1724461639603,4.367e-05,63893.0,63892.0,0.04681281]
[1724461639786,4.367e-05,63893.0,63889.0,0.23580634]
[1724461640102,4.367e-05,63893.0,63890.0,0.06240934]
[1724461640394,4.367e-05,63893.0,63890.0,0.3608]
[1724461640596,0.00023476,63899.0,63890.0,0.83036]
[1724461640794,0.00023476,63899.0,63898.0,0.06240432]
[1724461640995,0.00023476,63899.0,63898.0,0.078186]
[1724461641300,0.00023476,63899.0,63896.0,0.06240983]
[1724461641488,0.00023476,63899.0,63898.0,0.04679497]
[1724461641694,0.04689861,63899.0,63896.0,0.04679497]
[1724461641891,0.078187,63897.0,63896.0,0.04679497]
[1724461642203,0.34485085,63897.0,63895.0,0.04679497]
[1724461642399,0.07819,63895.0,63894.0,0.04679497]
[1724461642594,0.078193,63892.0,63890.0,0.001]
[1724461642793,0.04672039,63891.0,63890.0,0.001]
[1724461642998,0.078193,63892.0,63890.0,0.001]
[1724461643504,0.078197,63889.0,63888.0,0.04679497]
[1724461644203,0.068197,63889.0,63888.0,0.04680133]
[1724461644409,0.068197,63889.0,63887.0,0.00023476]
[1724461644598,0.04672405,63888.0,63887.0,0.00023476]
[1724461644795,0.069197,63889.0,63887.0,0.00023476]
[1724461645098,0.069197,63889.0,63888.0,0.04680271]
[1724461645405,0.068197,63889.0,63888.0,0.04980271]
[1724461645605,0.068197,63889.0,63888.0,0.003]
[1724461646801,0.068197,63889.0,63887.0,0.04703747]
[1724461647708,0.078198,63888.0,63887.0,0.04703747]
[1724461647904,0.438998,63888.0,63887.0,0.04703747]
[1724461648204,0.438998,63888.0,63887.0,0.00023476]
[1724461649504,0.438998,63888.0,63887.0,0.04703504]
[1724461649705,0.439038,63888.0,63887.0,0.00023476]
[1724461650396,0.439038,63888.0,63887.0,0.04703504]
[1724461650603,0.439038,63888.0,63887.0,0.00023476]
[1724461650804,0.078238,63888.0,63887.0,0.00023476]